fUSD/lending_fUSD_20240609
["ID","MTS","AMOUNT","RATE_DAILY","PERIOD"]
[328908352,1717972246088,-170.63269153,0.00029298,2]
[328908353,1717972246100,-556.81334793,0.00029298,2]
[328908354,1717972246111,-548485.04824667,0.00029298,13]
[328908355,1717972246124,-622.24139103,0.00029298,13]
[328908365,1717972247006,-7179.8617,0.00028741,2]
[328908366,1717972247016,-170.63269153,0.00029298,2]
[328908367,1717972247026,-6210.98327019,0.00029298,13]
[328908368,1717972247041,-636.52585003,0.00029298,13]
[328908369,1717972247053,-272.45285571,0.00029298,13]
[328908370,1717972247073,-14806.0888339,0.00029298,13]
[328908371,1717972247085,-4843.01122041,0.00029298,13]
[328908372,1717972247095,-151.0,0.00029299,2]
[328908373,1717972247105,-500.0,0.00029299,2]
[328908374,1717972247116,-151.0,0.00029299,2]
[328908375,1717972247126,-500.0,0.00029299,2]
[328908376,1717972247138,-151.0,0.00029299,2]
[328908377,1717972247152,-500.0,0.00029299,2]
[328908378,1717972247162,-500.0,0.00029299,2]
[328908379,1717972247172,-500.0,0.00029299,2]
[328908380,1717972247182,-151.0,0.00029299,2]
[328908381,1717972247192,-500.0,0.00029299,2]
[328908382,1717972247203,-151.0,0.00029299,2]
[328908383,1717972247213,-151.0,0.00029299,2]
[328908384,1717972247223,-500.0,0.00029299,2]
[328908385,1717972247234,-194.0,0.00029299,2]
[328908386,1717972247244,-576.0,0.00029299,2]
[328908387,1717972247254,-500.0,0.00029299,2]
[328908388,1717972247264,-500.0,0.00029299,2]
[328908389,1717972247274,-500.0,0.00029299,2]
[328908390,1717972247284,-500.0,0.00029299,2]
[328908391,1717972247294,-501.0,0.00029299,2]
[328908392,1717972247304,-500.0,0.00029299,4]
[328908393,1717972247314,-500.0,0.00029299,4]
[328908394,1717972247324,-500.0,0.00029299,4]
[328908395,1717972247335,-500.0,0.00029299,4]
[328908396,1717972247347,-305.06064231,0.00029299,4]
[328908397,1717972247357,-1280.95,0.00029299,4]
[328908398,1717972247368,-1280.95,0.00029299,4]
[328908399,1717972247378,-1280.95,0.00029299,4]
[328908400,1717972247388,-1280.95,0.00029299,4]
[328908401,1717972247399,-1280.95,0.00029299,4]
[328908402,1717972247409,-1280.95,0.00029299,4]
[328908403,1717972247419,-1280.95,0.00029299,4]
[328908404,1717972247429,-1280.95,0.00029299,4]
[328908405,1717972247439,-1280.95,0.00029299,4]
[328908406,1717972247448,-1280.95,0.00029299,4]
[328908407,1717972247458,-1280.95,0.00029299,4]
[328908408,1717972247468,-1280.95,0.00029299,4]
[328908409,1717972247478,-1280.95,0.00029299,4]
[328908410,1717972247489,-1280.96862111,0.00029299,4]
[328908411,1717972247499,-1107.39,0.00029299,4]
[328908412,1717972247509,-1107.39,0.00029299,4]
[328908413,1717972247518,-1107.39,0.00029299,4]
[328908414,1717972247529,-1107.39,0.00029299,4]
[328908415,1717972247539,-1107.39,0.00029299,4]
[328908416,1717972247550,-1107.39,0.00029299,4]
[328908417,1717972247559,-1107.39,0.00029299,4]
[328908418,1717972247570,-1107.39,0.00029299,4]
[328908419,1717972247580,-1107.39,0.00029299,4]
[328908420,1717972247590,-1107.39,0.00029299,4]
[328908421,1717972247600,-1107.39,0.00029299,4]
[328908422,1717972247612,-1107.39,0.00029299,4]
[328908423,1717972247622,-1107.39,0.00029299,4]
[328908424,1717972247632,-1107.54197918,0.00029299,4]
[328908425,1717972247642,-689.17,0.00029299,4]
[328908426,1717972247653,-689.17,0.00029299,4]
[328908427,1717972247663,-689.17,0.00029299,4]
[328908429,1717972247673,-689.17,0.00029299,4]
[328908431,1717972247683,-689.17,0.00029299,4]
[328908433,1717972247693,-689.17,0.00029299,4]
[328908435,1717972247704,-689.17,0.00029299,4]
[328908436,1717972247714,-689.17,0.00029299,4]
[328908438,1717972247724,-689.17,0.00029299,4]
[328908439,1717972247733,-689.17,0.00029299,4]
[328908440,1717972247743,-689.17,0.00029299,4]
[328908441,1717972247754,-689.17,0.00029299,4]
[328908442,1717972247766,-689.17,0.00029299,4]
[328908443,1717972247777,-689.23062758,0.00029299,4]
[328908444,1717972247790,-500.0,0.00029299,4]
[328908445,1717972247802,-500.0,0.00029299,4]
[328908446,1717972247814,-500.0,0.00029299,4]
[328908447,1717972247825,-500.0,0.00029299,4]
[328908448,1717972247836,-641.02125109,0.00029299,4]
[328908449,1717972247847,-1421.6,0.00029299,4]
[328908450,1717972247858,-1421.6,0.00029299,4]
[328908451,1717972247869,-1421.6,0.00029299,4]
[328908452,1717972247880,-1421.6,0.00029299,4]
[328908453,1717972247891,-1421.6,0.00029299,4]
[328908454,1717972247902,-1421.6,0.00029299,4]
[328908455,1717972247913,-1421.6,0.00029299,4]
[328908456,1717972247924,-1421.6,0.00029299,4]
[328908457,1717972247936,-1421.6,0.00029299,4]
[328908458,1717972247948,-1421.6,0.00029299,4]
[328908459,1717972247959,-1421.6,0.00029299,4]
[328908460,1717972247969,-1421.6,0.00029299,4]
[328908461,1717972247980,-1421.6,0.00029299,4]
[328908462,1717972247991,-500.0,0.00029299,4]
[328908463,1717972248001,-1421.81121443,0.00029299,4]
[328908464,1717972248012,-2746.69,0.00029299,4]
[328908465,1717972248022,-2746.69,0.00029299,4]
[328908466,1717972248032,-2746.69,0.00029299,4]
[328908467,1717972248042,-2746.69,0.00029299,4]
[328908468,1717972248052,-2746.69,0.00029299,4]
[328908469,1717972248062,-2746.69,0.00029299,4]
[328908470,1717972248072,-2746.69,0.00029299,4]
[328908471,1717972248083,-2746.69,0.00029299,4]
[328908472,1717972248093,-2746.69,0.00029299,4]
[328908473,1717972248103,-2746.69,0.00029299,4]
[328908474,1717972248115,-2746.69,0.00029299,4]
[328908475,1717972248126,-2746.69,0.00029299,4]
[328908476,1717972248136,-2746.74581468,0.00029299,4]
[328908477,1717972248147,-500.0,0.00029299,4]
[328908478,1717972248157,-500.0,0.00029299,4]
[328908479,1717972248166,-500.0,0.00029299,4]
[328908480,1717972248175,-500.0,0.00029299,4]
[328908481,1717972248185,-500.0,0.00029299,4]
[328908482,1717972248195,-500.0,0.00029299,4]
[328908483,1717972248207,-500.0,0.00029299,4]
[328908484,1717972248217,-500.0,0.00029299,4]
[328908485,1717972248227,-500.0,0.00029299,4]
[328908486,1717972248237,-369.88432059,0.00029299,4]
[328908487,1717972248247,-5277.37,0.00029299,4]
[328908488,1717972248258,-5277.37,0.00029299,4]
[328908489,1717972248268,-5277.37,0.00029299,4]
[328908490,1717972248277,-5277.37,0.00029299,4]
[328908491,1717972248287,-5277.37,0.00029299,4]
[328908492,1717972248298,-5277.37,0.00029299,4]
[328908493,1717972248307,-5277.37,0.00029299,4]
[328908494,1717972248316,-5277.37,0.00029299,4]
[328908495,1717972248326,-5277.37,0.00029299,4]
[328908496,1717972248336,-5277.37,0.00029299,4]
[328908497,1717972248346,-5277.37,0.00029299,4]
[328908498,1717972248356,-5277.37,0.00029299,4]
[328908499,1717972248367,-5277.37,0.00029299,4]
[328908500,1717972248376,-5277.48,0.00029299,4]
[328908501,1717972248386,-159.90982101,0.00029299,7]
[328908502,1717972248396,-500.0,0.00029299,4]
[328908503,1717972248405,-500.0,0.00029299,4]
[328908504,1717972248414,-151.0,0.000293,2]
[328908505,1717972248423,-222.87402491,0.000293,5]
[328908506,1717972248433,-57988.27852392,0.000293,5]
[328908507,1717972248569,-498.48057,0.000293,5]
[328908508,1717972248581,-329.34405355,0.000293,5]
[328908509,1717972248593,-11114.854409,0.000293,5]
[328908510,1717972248612,-1239.63437976,0.000293,5]
[328908511,1717972248638,-2973.29062764,0.000293,5]
[328908512,1717972248662,-192.0,0.0002929,5]
[328908513,1717972248672,-1874.06392,0.000293,5]
[328908514,1717972248684,-313.99159286,0.000293,5]
[328908515,1717972248697,-84196.79960486,0.000293,5]
[328908516,1717972248709,-5000.51833819,0.000293,5]
[328908517,1717972248722,-4803.45941549,0.000293,5]
[328908518,1717972248734,-4421.681523,0.000293,5]
[328908519,1717972343333,1000.0,0.00017259,2]
[328908522,1717972350297,537.72037607,0.00017259,2]
[328908526,1717972503476,150.5,0.00019716,15]
[328908527,1717972504038,150.5,0.00019706,15]
[328908528,1717972504864,150.5,0.00019696,15]
[328908529,1717972504953,555.0,0.00019716,15]
[328908530,1717972505433,555.0,0.00019706,15]
[328908531,1717972506237,555.0,0.00019696,15]
[328908532,1717972624894,389.0,0.00019716,15]
[328908533,1717972625472,389.0,0.00019706,15]
[328908534,1717972625963,389.0,0.00019696,15]
[328908536,1717972744752,723.0,0.00019716,15]
[328908537,1717972745234,723.0,0.00019706,15]
[328908538,1717972745352,272.0,0.00019716,15]
[328908539,1717972745756,723.0,0.00019696,15]
[328908540,1717972745825,272.0,0.00019706,15]
[328908541,1717972746333,272.0,0.00019696,15]
[328908542,1717972864750,190.0,0.00019716,15]
[328908543,1717972865343,190.0,0.00019706,15]
[328908544,1717972865725,190.0,0.00019696,15]
[328908545,1717972985448,150.5,0.00019686,15]
[328908546,1717972985969,150.5,0.00019676,15]
[328908547,1717972986454,150.5,0.00019666,15]
[328908548,1717973049795,-956.5707,0.000139,2]
[328908549,1717973049823,-151.81,0.0001399,2]
[328908550,1717973049850,-151.81,0.0001399,2]
[328908551,1717973049878,-151.81,0.0001399,2]
[328908552,1717973049909,-151.81,0.0001399,2]
[328908553,1717973049935,-151.81,0.0001399,2]
[328908554,1717973049962,-151.81,0.0001399,2]
[328908555,1717973049989,-151.81,0.0001399,2]
[328908556,1717973050016,-151.81,0.0001399,2]
[328908557,1717973050042,-151.81,0.0001399,2]
[328908558,1717973050083,-151.81,0.0001399,2]
[328908559,1717973050112,-151.81,0.0001399,2]
[328908560,1717973050138,-688.66530274,0.00013997,2]
[328908561,1717973050164,-1794.9987264,0.00013998,2]
[328908562,1717973050188,-1248.31846585,0.00013999,2]
[328908563,1717973050218,-643641.53680501,0.00014,2]
[328908564,1717973104456,506.0,0.00019686,15]
[328908565,1717973104829,150.5,0.00019686,15]
[328908566,1717973104952,506.0,0.00019676,15]
[328908567,1717973105318,150.5,0.00019676,15]
[328908568,1717973105370,150.5,0.00019686,15]
[328908569,1717973105512,506.0,0.00019666,15]
[328908570,1717973105791,150.5,0.00019686,15]
[328908571,1717973105826,150.5,0.00019666,15]
[328908572,1717973105880,150.5,0.00019676,15]
[328908573,1717973106276,150.5,0.00019676,15]
[328908574,1717973106585,150.5,0.00019666,15]
[328908575,1717973106872,150.5,0.00019666,15]
[328908576,1717973189321,485.13738798,0.00013999,7]
[328908577,1717973214410,-786.24788383,0.00013997,2]
[328908578,1717973214435,-158.35201664,0.00013998,2]
[328908579,1717973214461,-158.20894934,0.00013998,2]
[328908580,1717973214487,-530.62329279,0.00013998,2]
[328908581,1717973214513,-227.98987109,0.00013998,2]
[328908582,1717973214539,-155.0,0.00013999,2]
[328908583,1717973214565,-304.25953154,0.00013999,2]
[328908584,1717973214592,-155.0,0.00013999,2]
[328908585,1717973214618,-31556.83215655,0.00013999,2]
[328908586,1717973214643,-268.32530534,0.00013999,2]
[328908587,1717973214668,-794.16956933,0.00013999,2]
[328908588,1717973214694,-417.45255306,0.00013999,2]
[328908589,1717973214718,-3010.0645021,0.00013999,5]
[328908590,1717973214742,-177.873689,0.00013999,2]
[328908591,1717973214767,-155.18198312,0.00013999,2]
[328908592,1717973214793,-381.97827758,0.00013999,2]
[328908593,1717973214818,-155.82683329,0.00013999,2]
[328908594,1717973214844,-4759.80968222,0.00013999,2]
[328908595,1717973214869,-198.028393,0.00013999,2]
[328908596,1717973214894,-490.42437112,0.00013999,2]
[328908597,1717973214919,-327.96206021,0.00013999,2]
[328908598,1717973214948,-4290.55941569,0.00013999,2]
[328908599,1717973214974,-164.57038171,0.00013999,2]
[328908600,1717973215005,-1085.77028475,0.00013999,5]
[328908601,1717973215036,-1049289.4889967,0.00014,2]
[328908602,1717973224975,150.5,0.00019656,15]
[328908603,1717973225578,150.5,0.00019646,15]
[328908604,1717973226079,284.5,0.00019636,15]
[328908605,1717973248145,-441.17299296,0.000134,4]
[328908607,1717973356140,-58.82700704,0.000134,4]
[328908608,1717973356165,-506.72413374,0.00013499,2]
[328908609,1717973356192,-1100.0,0.000135,4]
[328908610,1717973356219,-1700.0,0.000136,4]
[328908611,1717973356246,-2300.0,0.000137,5]
[328908612,1717973356272,-2900.0,0.000138,5]
[328908613,1717973356298,-500.0,0.000139,5]
[328908614,1717973356322,-785.84124716,0.00013999,2]
[328908615,1717973356346,-305.14334765,0.00013999,2]
[328908616,1717973356376,-10632.36168253,0.00014,2]
[328908617,1717973360488,-30494.50620814,0.00014,2]
[328908618,1717973362143,-18661.28164759,0.00014,2]
[328908619,1717973365194,-22010.43625718,0.00014,2]
[328908620,1717973372312,-383.44518306,0.00013999,2]
[328908621,1717973372340,-6573.72901694,0.00014,2]
[328908624,1717973432271,-749.92728546,0.000139,2]
[328908625,1717973432282,-319.93884414,0.000139,2]
[328908626,1717973432295,-153.02,0.0001399,2]
[328908627,1717973432305,-153.02,0.0001399,2]
[328908628,1717973432316,-542.2859949,0.00013999,2]
[328908629,1717973432328,-155.05967244,0.00013999,2]
[328908630,1717973432340,-10542.74820306,0.00014,2]
[328908631,1717973432353,-10262.63192626,0.00014,2]
[328908633,1717973432754,-391.85679535,0.00014,2]
[328908635,1717973432767,-586995.59431539,0.00014,2]
[328908663,1717973442045,-200.22522866,0.000139,2]
[328908664,1717973442060,-215.64274998,0.000139,2]
[328908665,1717973442071,-17253.75236429,0.00014,2]
[328908666,1717973442085,-3194.20125062,0.00014,2]
[328908667,1717973442099,-504.08999982,0.00014,2]
[328908668,1717973442220,-1405.95000013,0.00014,2]
[328908670,1717973443883,-80565.47529948,0.00014,2]
[328908688,1717973444291,-3151.1213246,0.00014,2]
[328908754,1717973448075,-5290567.2168137,0.00014,2]
[328908755,1717973448085,-500.0,0.00014,2]
[328908756,1717973448097,-500.0,0.00014,2]
[328908757,1717973448109,-950.0,0.00014,2]
[328908758,1717973448121,-360.13279782,0.00015525,2]
[328908759,1717973448136,-161.2439215,0.00016025,2]
[328908760,1717973448147,-179.24703441,0.00016125,2]
[328908761,1717973448159,-5444.16311094,0.00016525,2]
[328908762,1717973448170,-172.91734175,0.00017025,2]
[328908763,1717973448181,-150.0,0.00017205,2]
[328908764,1717973448192,-664.76385809,0.00017225,2]
[328908765,1717973448205,-674.0,0.00017259,2]
[328908766,1717973448217,-184.72961953,0.0001765,2]
[328908767,1717973448230,-5444.16311086,0.00017723,2]
[328908768,1717973448243,-767.16253188,0.00018,2]
[328908769,1717973448255,-5444.16311086,0.0001892,2]
[328908770,1717973448266,-310.80191752,0.00019178,2]
[328908771,1717973448277,-500.0,0.00019178,2]
[328908772,1717973448290,-476.96839323,0.00019178,2]
[328908773,1717973448301,-500.0,0.00019178,2]
[328908774,1717973448312,-282.6111587,0.00019178,2]
[328908775,1717973448324,-369.59749963,0.00019178,2]
[328908776,1717973448336,-184.72961953,0.00019575,2]
[328908777,1717973448348,-179.37882463,0.00019666,2]
[328908778,1717973448360,-1153.15041329,0.00019666,2]
[328908779,1717973448372,-362.85834995,0.00019696,2]
[328908780,1717973448383,-646.27,0.00019839,2]
[328908781,1717973448395,-861.79438562,0.0002,2]
[328908782,1717973448406,-364.87661696,0.0002,2]
[328908783,1717973448417,-204.45805828,0.0002,2]
[328908784,1717973448429,-226.67450997,0.000201,2]
[328908785,1717973448441,-5444.16311086,0.00020118,2]
[328908786,1717973448454,-903.42,0.00020244,2]
[328908787,1717973448465,-460.58,0.00020326,2]
[328908788,1717973448478,-1000.0,0.00020856,2]
[328908789,1717973448489,-5444.16311086,0.00021316,2]
[328908790,1717973448499,-184.72961953,0.000215,2]
[328908791,1717973448510,-749.92728546,0.0002155,2]
[328908792,1717973448521,-2211.0,0.000216,3]
[328908793,1717973448531,-319.93884412,0.000219,2]
[328908794,1717973448542,-646.27,0.00022103,2]
[328908795,1717973448553,-11737.0,0.000222,5]
[328908796,1717973448564,-3861.26442005,0.00022363,2]
[328908797,1717973448574,-5444.16311086,0.00022514,2]
[328908798,1717973448584,-903.42,0.00022983,2]
[328908799,1717973448595,-40060.15258303,0.00023,2]
[328908800,1717973448605,-250.0,0.0002335,2]
[328908801,1717973448616,-184.72961953,0.00023425,2]
[328908802,1717973448628,-1000.0,0.00023463,2]
[328908803,1717973448640,-2120.96108369,0.000236,2]
[328908804,1717973448652,-5444.16311086,0.00023711,2]
[328908805,1717973448663,-150.0,0.00024286,2]
[328908806,1717973448674,-7297.95,0.00024292,2]
[328908807,1717973448684,-176.92,0.00024306,2]
[328908808,1717973448695,-646.27,0.00024366,2]
[328908809,1717973448706,-244.56,0.00024384,2]
[328908810,1717973448717,-187.37,0.00024384,2]
[328908811,1717973448729,-250.0,0.00024482,2]
[328908812,1717973448739,-304.49202874,0.00024798,2]
[328908813,1717973448751,-304.49202867,0.00024798,2]
[328908814,1717973448762,-304.49202867,0.00024798,2]
[328908815,1717973448772,-304.49202867,0.00024798,2]
[328908816,1717973448783,-304.49202867,0.00024798,2]
[328908817,1717973448793,-304.49202867,0.00024798,2]
[328908818,1717973448804,-304.49202867,0.00024798,2]
[328908819,1717973448815,-1277.8489358,0.00024799,2]
[328908820,1717973448826,-1277.84893577,0.00024799,2]
[328908821,1717973448837,-1277.84893577,0.00024799,2]
[328908822,1717973448849,-1277.84893577,0.00024799,2]
[328908823,1717973448860,-1277.84893577,0.00024799,2]
[328908824,1717973448871,-1277.84893577,0.00024799,2]
[328908825,1717973448882,-1277.84893577,0.00024799,2]
[328908826,1717973448892,-5444.16311086,0.00024909,2]
[328908827,1717973448903,-1250.0,0.00025,2]
[328908828,1717973448913,-155.76415235,0.00025,2]
[328908829,1717973448924,-14470.49920023,0.00025,2]
[328908830,1717973448935,-250.0,0.00025172,2]
[328908831,1717973448947,-184.72961953,0.0002535,2]
[328908832,1717973448957,-591.0,0.000254,3]
[328908833,1717973448967,-177.35,0.0002542,2]
[328908834,1717973448979,-903.42,0.00025723,2]
[328908835,1717973448991,-23534.25625495,0.00026,5]
[328908836,1717973449002,-151.0,0.00026059,5]
[328908837,1717973449013,-1000.0,0.0002607,2]
[328908838,1717973449024,-5444.16311086,0.00026107,2]
[328908839,1717973449035,-164.06121976,0.00026112,2]
[328908840,1717973449047,-155.34219395,0.00026143,2]
[328908841,1717973449063,-154.30600323,0.00026162,2]
[328908842,1717973449074,-151.29914083,0.00026181,2]
[328908843,1717973449087,-167.46582598,0.00026197,2]
[328908844,1717973449098,-161.1719559,0.00026227,2]
[328908845,1717973449111,-304.49202867,0.0002625,2]
[328908846,1717973449121,-154.30600323,0.0002626,2]
[328908847,1717973449132,-167.46582598,0.00026315,2]
[328908848,1717973449143,-151.29914083,0.00026333,2]
[328908849,1717973449153,-203.19,0.00026362,2]
[328908850,1717973449164,-199.69,0.00026363,2]
[328908851,1717973449174,-752.05039497,0.00026368,2]
[328908852,1717973449184,-153.15701279,0.00026373,2]
[328908853,1717973449195,-154.30600323,0.00026389,2]
[328908854,1717973449205,-166.65534304,0.00026429,2]
[328908855,1717973449216,-169.7,0.00026506,2]
[328908856,1717973449227,-169.52503523,0.00026568,2]
[328908857,1717973449237,-155.60386588,0.000266,2]
[328908858,1717973449247,-646.27,0.0002663,2]
[328908859,1717973449258,-167.46582598,0.00026682,2]
[328908860,1717973449269,-151.29914083,0.00026701,2]
[328908861,1717973449280,-167.46582598,0.00026709,2]
[328908862,1717973449291,-155.05213022,0.00026719,2]
[328908863,1717973449302,-167.46582598,0.00026724,2]
[328908864,1717973449312,-160.01434189,0.00026768,2]
[328908865,1717973449323,-160.01434189,0.00026784,2]
[328908866,1717973449333,-160.65767633,0.00026787,2]
[328908867,1717973449343,-167.46582598,0.00026891,2]
[328908868,1717973449354,-27929.13579925,0.00026993,2]
[328908869,1717973449366,-177.753875,0.00026994,2]
[328908870,1717973449376,-705.37255,0.00026994,2]
[328908871,1717973449387,-664.967759,0.00026994,2]
[328908872,1717973449397,-180.851125,0.00026994,2]
[328908873,1717973449408,-467.257884,0.00026994,2]
[328908874,1717973449418,-954.420625,0.00026994,2]
[328908875,1717973449428,-598.031938,0.00026994,2]
[328908876,1717973449439,-861.166889,0.00026994,2]
[328908877,1717973449450,-1300.0,0.00027,2]
[328908878,1717973449461,-164.44516,0.00027,2]
[328908879,1717973449472,-435.85096148,0.00027,2]
[328908880,1717973449483,-17796.04120922,0.00027,2]
[328908881,1717973449493,-151.29914083,0.00027022,2]
[328908882,1717973449504,-151.29914083,0.00027033,2]
[328908883,1717973449515,-167.46582598,0.00027035,2]
[328908884,1717973449525,-167.46582598,0.00027051,2]
[328908885,1717973449536,-154.30600323,0.00027059,2]
[328908886,1717973449547,-154.30600323,0.00027083,2]
[328908887,1717973449559,-156.497,0.00027098,2]
[328908888,1717973449569,-281.0,0.00027098,2]
[328908889,1717973449580,-1648.0,0.00027098,2]
[328908890,1717973449590,-443.192,0.00027098,2]
[328908891,1717973449600,-808.0,0.00027098,2]
[328908892,1717973449611,-165.0,0.00027098,2]
[328908893,1717973449621,-2405.0,0.00027098,2]
[328908894,1717973449631,-446.0,0.00027098,2]
[328908895,1717973449641,-1303.0,0.00027098,2]
[328908896,1717973449652,-545.0,0.00027098,2]
[328908897,1717973449662,-3172.0,0.00027098,2]
[328908898,1717973449673,-290.0,0.00027098,2]
[328908899,1717973449683,-1194.0,0.00027098,2]
[328908900,1717973449694,-5154.0,0.00027098,2]
[328908901,1717973449705,-5783.0,0.00027098,2]
[328908902,1717973449715,-12667.701,0.00027098,2]
[328908903,1717973449725,-1367.0,0.00027098,2]
[328908904,1717973449736,-153.86687216,0.00027126,2]
[328908905,1717973449748,-151.0,0.0002714,7]
[328908906,1717973449759,-167.46582598,0.00027164,2]
[328908907,1717973449770,-154.30600323,0.00027177,2]
[328908908,1717973449781,-154.30600323,0.00027184,2]
[328908909,1717973449792,-167.46582598,0.00027195,2]
[328908910,1717973449802,-160.01434189,0.00027221,2]
[328908911,1717973449813,-155.60386588,0.00027225,2]
[328908912,1717973449823,-155.60386588,0.00027227,2]
[328908913,1717973449834,-162.25045896,0.00027229,2]
[328908914,1717973449844,-167.46582598,0.00027241,2]
[328908915,1717973449854,-184.72961953,0.00027275,2]
[328908916,1717973449865,-153.15701279,0.00027299,2]
[328908917,1717973449876,-5444.16311086,0.00027305,2]
[328908918,1717973449886,-167.55,0.0002732,2]
[328908919,1717973449897,-705.37255,0.00027331,2]
[328908920,1717973449907,-664.967759,0.00027331,2]
[328908921,1717973449921,-467.257884,0.00027331,2]
[328908922,1717973449932,-954.420625,0.00027331,2]
[328908923,1717973449945,-598.031938,0.00027331,2]
[328908924,1717973449956,-861.166889,0.00027331,2]
[328908925,1717973449966,-167.46582598,0.00027374,2]
[328908926,1717973449977,-155.15244304,0.00027382,2]
[328908927,1717973449987,-802.23488795,0.0002739,2]
[328908928,1717973449998,-500.0,0.00027397,2]
[328908929,1717973450009,-279.8181823,0.00027397,2]
[328908930,1717973450021,-239.75282357,0.00027397,2]
[328908931,1717973450033,-152.06,0.00027397,2]
[328908932,1717973450044,-1325.0,0.000274,2]
[328908933,1717973450059,-167.46582598,0.00027418,2]
[328908934,1717973450071,-167.46582598,0.00027437,2]
[328908935,1717973450082,-154.30600323,0.00027462,2]
[328908936,1717973450093,-636.60048638,0.000275,2]
[328908937,1717973450104,-167.46582598,0.00027505,2]
[328908938,1717973450114,-167.46582598,0.00027515,2]
[328908939,1717973450125,-151.29914083,0.00027538,2]
[328908940,1717973450137,-155.60386588,0.00027539,2]
[328908941,1717973450148,-176.80540713,0.00027543,2]
[328908942,1717973450158,-153.82629265,0.00027562,2]
[328908943,1717973450169,-165.9373607,0.00027636,2]
[328908944,1717973450179,-705.37255,0.00027668,2]
[328908945,1717973450190,-664.967759,0.00027668,2]
[328908946,1717973450201,-467.257884,0.00027668,2]
[328908947,1717973450211,-954.420625,0.00027668,2]
[328908948,1717973450223,-598.031938,0.00027668,2]
[328908949,1717973450234,-861.166889,0.00027668,2]
[328908950,1717973450244,-304.49202867,0.00027725,2]
[328908951,1717973450255,-500.0,0.00027753,2]
[328908952,1717973450265,-500.0,0.00027753,2]
[328908953,1717973450276,-527.0,0.00027753,2]
[328908954,1717973450287,-155.34219395,0.00027773,2]
[328908955,1717973450301,-2011.37343874,0.00027833,2]
[328908956,1717973450312,-160.01434189,0.00027883,2]
[328908957,1717973450324,-266.10450733,0.000279,2]
[328908958,1717973450335,-167.46582598,0.00027926,2]
[328908959,1717973450348,-155.60386588,0.00027959,2]
[328908960,1717973450361,-177.35,0.00027962,2]
[328908961,1717973450372,-167.46582598,0.00027994,2]
[328908962,1717973450383,-224.83196172,0.00028,2]
[328908963,1717973450572,-554.1818017,0.00028,2]
[328908964,1717973450582,-705.37255,0.00028006,2]
[328908965,1717973450593,-664.967759,0.00028006,2]
[328908966,1717973450605,-467.257884,0.00028006,2]
[328908967,1717973450615,-954.420625,0.00028006,2]
[328908968,1717973450625,-598.031938,0.00028006,2]
[328908969,1717973450636,-861.166889,0.00028006,2]
[328908970,1717973450646,-167.46582598,0.00028007,2]
[328908971,1717973450656,-167.46582598,0.00028019,2]
[328908972,1717973450667,-162.25045896,0.0002804,2]
[328908973,1717973450678,-155.60386588,0.00028101,2]
[328908974,1717973450690,-162.25045896,0.00028119,2]
[328908975,1717973450702,-625.29760276,0.00028126,2]
[328908976,1717973450712,-153.15701279,0.00028158,2]
[328908977,1717973450724,-155.15244304,0.0002816,2]
[328908978,1717973450736,-163.21121,0.00028215,7]
[328908979,1717973450748,-157.683312,0.00028215,7]
[328908980,1717973450760,-151.0,0.0002822,7]
[328908981,1717973450773,-602.42265876,0.00028224,7]
[328908982,1717973450786,-155.05213022,0.00028257,2]
[328908983,1717973450798,-155.56456195,0.00028275,2]
[328908984,1717973450809,-162.25045896,0.00028286,2]
[328908985,1717973450823,-205.0,0.000283,2]
[328908986,1717973450834,-160.01434189,0.00028318,2]